bitfinex/quotes_SOLUSD_20220113
["timestamp","ask_amount","ask_price","bid_price","bid_amount"]
[1642096233276,24.3188,149.74,149.61,11.72461136]
[1642096233476,24.0588,149.74,149.61,11.72461136]
[1642096233679,24.85006503,149.75,149.61,77.05461136]
[1642096233876,24.85006503,149.75,149.62,3.82461615]
[1642096234077,27.52206503,149.75,149.63,10.34745915]
[1642096234276,24.8738,149.74,149.63,10.34745915]
[1642096234478,2.672,149.73,149.63,16.85745915]
[1642096234880,24.8738,149.74,149.63,16.85745915]
[1642096235080,27.5458,149.74,149.64,1.64999521]
[1642096235282,24.8738,149.74,149.64,1.64999521]
[1642096235480,2.672,149.76,149.64,2.15999521]
[1642096235881,2.672,149.76,149.65,1.64999521]
[1642096236081,2.67,149.77,149.65,8.15999521]
[1642096236280,27.0423,149.77,149.66,3.8634352]
[1642096236480,27.0423,149.77,149.66,12.02343041]
[1642096236779,27.0423,149.77,149.67,1.64999521]
[1642096237080,13.33592406,149.76,149.64,1.64999521]
[1642096237282,2.672,149.75,149.64,1.64999521]
[1642096237584,10.0202,149.73,149.58,7.82]
[1642096237781,2.672,149.72,149.58,30.5425]
[1642096237984,2.672,149.72,149.59,10.98781276]
[1642096238379,12.6927,149.72,149.59,16.98781276]
[1642096238579,12.6927,149.72,149.59,17.49781276]
[1642096239179,12.6927,149.72,149.59,82.82781276]
[1642096239380,2.672,149.72,149.6,5.47222616]
[1642096239578,2.672,149.72,149.6,11.98222616]
[1642096240180,2.672,149.72,149.61,3.82223095]
[1642096240379,2.672,149.72,149.62,3.22308159]
[1642096240584,2.672,149.72,149.62,9.48308159]
[1642096240984,2.672,149.72,149.62,6.0]
[1642096241186,10.742,149.72,149.61,3.82223095]
[1642096241585,16.742,149.72,149.61,3.82223095]
[1642096242085,26.7628,149.72,149.61,3.82223095]
[1642096242483,26.7628,149.72,149.59,3.82223095]
[1642096242683,26.5128,149.72,149.59,3.82223095]
[1642096242883,26.7628,149.72,149.59,3.82223095]
[1642096243087,1.67089961,149.59,149.58,22.7225]
[1642096243283,10.023,149.69,149.58,6.31439993]
[1642096243484,2.673,149.68,149.58,7.97439514]
[1642096243684,2.673,149.68,149.58,13.97439514]
[1642096243885,2.673,149.7,149.58,13.97439514]
[1642096244085,15.77870905,149.69,149.58,17.80078743]
[1642096244287,2.673,149.68,149.59,65.33]
[1642096244510,2.672,149.7,149.59,71.59]
[1642096244710,46.9157,149.71,149.6,1.64999521]
[1642096244910,2.672,149.7,149.6,1.64999521]
[1642096245111,46.9157,149.71,149.6,8.15999521]
[1642096245412,12.694,149.7,149.6,8.15999521]
[1642096245613,12.694,149.7,149.6,7.89999521]
[1642096245813,0.07,149.68,149.57,1.64999521]
[1642096246014,68.003,149.67,149.57,1.64999521]
[1642096246215,0.07,149.65,149.5,7.82]
[1642096246412,12.7002,149.64,149.5,7.82]
[1642096246611,43.3416,149.64,149.5,7.82]
[1642096247211,51.1896,149.64,149.5,7.82]
[1642096247411,50.9396,149.64,149.5,8.08]
[1642096247612,43.3416,149.64,149.51,1.64999521]
[1642096248217,43.5916,149.64,149.5,7.82]
[1642096248413,57.1546,149.64,149.49,3.48536227]
[1642096248615,57.1546,149.64,149.51,3.82786007]
[1642096249015,58.80459521,149.64,149.51,3.82786007]
[1642096249614,57.1546,149.64,149.51,3.82786007]
[1642096249816,51.6716,149.64,149.52,1.64999521]
[1642096250015,51.6716,149.64,149.52,2.57160187]
[1642096250416,51.4116,149.64,149.52,2.57160187]
[1642096251016,51.4116,149.64,149.53,3.82786007]
[1642096251316,51.4116,149.64,149.53,5.47785528]
[1642096251516,51.4116,149.64,149.53,5.98785528]
[1642096252320,51.4116,149.64,149.53,4.33786007]
[1642096252521,51.6716,149.64,149.53,4.33786007]
[1642096253024,51.6716,149.64,149.53,0.26]
[1642096253521,51.6716,149.64,149.51,1.90999521]
[1642096254725,51.4116,149.64,149.52,3.82837686]
[1642096254926,51.1616,149.64,149.52,3.82837686]
[1642096255126,51.1616,149.64,149.52,5.98837207]
[1642096255626,48.4876,149.64,149.53,1.64999521]
[1642096255829,38.4614,149.64,149.53,1.64999521]
[1642096256027,32.4614,149.64,149.53,67.48999521]
[1642096256228,13.33667575,149.65,149.53,67.48999521]
[1642096256428,24.1484,149.66,149.54,5.47837207]
[1642096256629,24.1484,149.66,149.55,65.33]
[1642096256828,10.0221,149.7,149.55,80.14699521]
[1642096257032,10.0221,149.7,149.55,86.65699521]
[1642096257230,10.0221,149.7,149.56,1.64999521]
[1642096257428,16.97732148,149.7,149.57,12.98467212]
[1642096257928,16.97732148,149.7,149.58,1.64999521]
[1642096258333,16.97732148,149.7,149.58,2.15999521]
[1642096258730,16.97732148,149.7,149.59,5.47837207]
[1642096259131,16.97732148,149.7,149.59,5.98837207]
[1642096259333,16.97732148,149.7,149.6,66.55622223]
[1642096259532,10.022,149.7,149.6,67.06622223]
[1642096259733,58.0204,149.72,149.6,67.06622223]
[1642096259934,47.5274,149.72,149.6,67.06622223]
[1642096260233,24.272,149.72,149.61,1.64999521]
[1642096260433,27.4606,149.76,149.61,1.64999521]
[1642096260633,27.4606,149.76,149.61,2.15999521]
[1642096261032,27.4606,149.76,149.62,1.64999521]
[1642096261234,10.0187,149.75,149.63,10.12768144]
[1642096261434,13.53382687,149.73,149.63,10.12768144]
[1642096261635,2.672,149.72,149.63,0.25]
[1642096262437,26.8581,149.72,149.63,0.25]
[1642096262635,26.8581,149.72,149.61,11.22744489]
[1642096263034,26.8581,149.72,149.62,1.64999521]
[1642096263437,26.8581,149.72,149.62,2.15999521]
[1642096263638,0.04148713,149.72,149.62,2.15999521]
[1642096263837,0.04148713,149.72,149.63,1.64999521]
[1642096264134,0.04148713,149.72,149.64,7.82]
[1642096264335,0.04148713,149.72,149.64,10.80344946]
[1642096264635,0.04148713,149.72,149.65,1.64999521]
[1642096265035,0.04148713,149.72,149.65,8.15999521]
[1642096265635,0.04148713,149.72,149.67,10.80861575]
[1642096266038,0.04148713,149.72,149.67,1.64999521]
[1642096266237,2.672,149.71,149.62,7.82]
[1642096266837,0.04148713,149.72,149.62,7.82]
[1642096267043,0.04148713,149.72,149.63,11.46945753]
[1642096267638,0.04148713,149.72,149.63,11.97945753]
[1642096268239,0.04148713,149.72,149.64,65.33]
[1642096268440,0.04148713,149.72,149.64,73.15]
[1642096268646,0.04148713,149.72,149.64,73.66]
[1642096269945,0.04148713,149.72,149.64,79.66]
[1642096270446,0.04148713,149.72,149.64,79.4]
[1642096272053,0.04148713,149.72,149.64,81.30999521]
[1642096273352,0.04148713,149.72,149.65,3.82241189]
[1642096273553,0.04148713,149.72,149.66,7.82]
[1642096273756,0.04148713,149.72,149.67,2.74143682]
[1642096273954,0.04148713,149.72,149.67,12.72143203]
[1642096274353,0.04148713,149.72,149.68,1.64999521]
[1642096274554,0.04148713,149.72,149.68,67.48999521]
[1642096274954,0.04148713,149.72,149.69,1.64999521]
[1642096275258,0.04148713,149.72,149.71,65.33]
[1642096275455,0.04148713,149.72,149.71,65.84]
[1642096275653,49.5025,149.81,149.72,11.46945753]
[1642096276054,49.5025,149.81,149.72,13.62945274]
[1642096277354,49.5025,149.81,149.73,65.33]
[1642096277556,49.5025,149.81,149.73,65.84]
[1642096277755,46.8305,149.81,149.74,1.64999521]
[1642096277960,2.67,149.8,149.66,7.82]
[1642096278159,12.13999521,149.8,149.66,7.82]
[1642096278376,16.74,149.8,149.66,7.82]
[1642096278778,23.8452,149.79,149.67,13.16525244]
[1642096278976,23.8452,149.79,149.68,7.82]
[1642096279176,23.8452,149.79,149.69,65.33]
[1642096279376,3.77565523,149.79,149.69,65.33]
[1642096279581,3.77565523,149.79,149.69,65.58]
[1642096279781,2.67,149.78,149.69,0.25]
[1642096279985,3.77565523,149.79,149.69,0.25]
[1642096280382,26.061,149.81,149.69,0.25]
[1642096280582,23.391,149.81,149.68,8.07]
[1642096280784,23.391,149.81,149.69,65.33]
[1642096280983,23.391,149.81,149.71,65.33]
[1642096281387,5.6307378,149.85,149.72,8.86564191]
[1642096281585,5.6307378,149.85,149.72,17.02563712]
[1642096281783,5.6307378,149.85,149.72,22.02563712]
[1642096281983,5.6307378,149.85,149.73,1.64999521]
[1642096282183,5.6307378,149.85,149.74,7.82]
[1642096282385,5.6307378,149.85,149.76,65.33]
[1642096282585,3.825335,149.85,149.77,7.82]
[1642096282785,3.825335,149.85,149.78,65.33]
[1642096282986,3.825335,149.85,149.78,71.84]
[1642096283586,3.825335,149.85,149.79,9.74012864]
[1642096283990,3.825335,149.9,149.79,16.25012864]
[1642096284588,3.825335,149.9,149.79,17.90012385]
[1642096284789,3.825335,149.9,149.79,11.90012385]
[1642096284990,2.669,149.89,149.79,10.00012864]
[1642096285195,2.669,149.9,149.79,10.00012864]
[1642096285589,2.669,149.9,149.79,16.00012864]
[1642096285791,23.3872,149.91,149.79,16.00012864]
[1642096286190,2.669,149.93,149.79,16.00012864]
[1642096286390,2.669,149.93,149.79,16.25012864]
[1642096286593,2.669,149.93,149.8,65.33]
[1642096286790,8.669,149.93,149.81,7.82]
[1642096286991,5.6307378,149.94,149.82,65.33]
[1642096287191,5.6307378,149.94,149.83,7.82]
[1642096287490,5.6307378,149.94,149.83,14.33]
[1642096287693,5.6307378,149.94,149.85,11.85745265]
[1642096287890,5.6307378,149.97,149.87,65.33]
[1642096288091,5.6307378,149.97,149.88,2.3534417]
[1642096288292,5.6307378,149.97,149.88,4.00343691]
[1642096288491,5.6307378,149.97,149.88,4.51343691]
[1642096288692,5.6307378,149.97,149.89,74.79999521]
[1642096289094,3.82289265,149.97,149.89,79.66]
[1642096289291,3.82289265,149.97,149.89,73.66]
[1642096289893,3.82289265,149.97,149.89,73.4]
[1642096290295,2.666,149.98,149.89,73.4]
[1642096290296,3.82289265,150.0,149.89,73.4]
[1642096291094,14.3491366,149.99,149.89,73.4]
[1642096291294,2.666,149.98,149.89,73.4]
[1642096292194,3.82289265,149.97,149.89,73.4]
[1642096292393,3.82289265,149.97,149.89,79.4]
[1642096292595,3.82289265,149.97,149.89,7.82]
[1642096292896,2.166,149.96,149.89,7.82]
[1642096293400,3.82289265,149.97,149.89,7.82]
[1642096293596,2.666,149.96,149.89,7.82]
[1642096294399,2.668,149.98,149.89,8.08]
[1642096294797,2.666,149.99,149.89,8.08]
[1642096294996,27.6193,150.0,149.9,0.44446424]
[1642096295197,8.2967378,150.0,149.9,0.44446424]
[1642096295399,0.0007378,150.0,149.92,65.33]
[1642096295598,0.0007378,150.0,149.93,7.82]
[1642096295999,2.666,149.99,149.93,8.08]
[1642096296201,2.666,150.04,149.93,8.08]
[1642096296403,2.666,150.04,149.94,65.33]
[1642096296601,13.22886154,150.03,149.94,0.26]
[1642096296799,2.666,150.02,149.94,0.26]
[1642096297027,2.666,150.02,149.95,7.82]
[1642096297426,25.8361,150.05,149.95,7.82]
[1642096297624,25.8361,150.05,149.95,8.07]
[1642096297825,26.0861,150.05,149.95,8.07]
[1642096298025,13.73779829,150.04,149.95,7.82]
[1642096298228,2.666,150.03,149.95,8.08]
[1642096298426,6.48638739,150.04,149.95,8.08]
[1642096298827,6.48638739,150.04,149.96,65.33]
[1642096299029,3.82038739,150.04,149.97,7.82]
[1642096299228,3.82038739,150.04,149.97,20.21882396]
[1642096299430,3.82038739,150.03,149.97,92.05882396]
[1642096300331,12.82143293,150.06,149.97,92.05882396]
[1642096300530,12.82143293,150.06,149.97,79.66]
[1642096300732,2.666,150.11,149.97,73.66]
[1642096300933,2.58576,150.11,149.97,14.07]
[1642096301131,0.07,150.1,149.97,8.07]
[1642096301333,2.666,150.09,149.97,8.07]
[1642096301532,6.0,150.09,149.97,8.07]
[1642096301731,3.8200651,150.05,149.97,8.07]
[1642096301933,3.8200651,150.05,149.98,12.59354763]
[1642096302333,3.8200651,150.05,149.99,7.82]
[1642096302532,3.8200651,150.05,149.99,14.33]
[1642096302731,3.8200651,150.07,149.99,14.33]
[1642096302934,3.8200651,150.07,150.0,1.64999521]
[1642096303135,9.8200651,150.07,150.01,7.82]
[1642096303333,2.665,150.06,150.01,7.82]
[1642096303533,8.665,150.06,150.01,8.07]
[1642096303733,8.665,150.06,150.01,0.25]
[1642096303934,6.4860651,150.08,150.01,0.25]
[1642096304433,3.8200651,150.08,150.02,7.82]
[1642096304837,3.8200651,150.08,150.02,8.07]
[1642096305236,23.1412,150.09,150.02,8.07]
[1642096305436,23.1412,150.09,150.02,8.33]
[1642096305637,29.1412,150.09,150.02,8.33]
[1642096305837,29.1412,150.09,150.02,8.07]
[1642096306037,2.665,150.08,150.02,8.07]
[1642096306236,6.48439879,150.08,150.02,8.07]
[1642096306636,6.48439879,150.08,150.02,7.82]
[1642096306837,13.84840292,150.07,150.02,7.82]
[1642096307038,27.48767542,150.07,150.02,7.82]
[1642096307237,27.48767542,150.07,149.98,7.82]
[1642096307836,27.48767542,150.07,149.95,6.0]
[1642096307837,27.73767542,150.07,149.95,6.0]
[1642096308036,2.666,150.06,149.94,23.7346]
[1642096308236,3.81987371,150.05,149.94,23.7346]
[1642096308440,15.0488926,150.04,149.95,65.33]
[1642096308839,9.81987371,150.05,149.95,71.33]
[1642096309042,3.81987371,150.05,149.96,7.82]
[1642096309241,3.81987371,150.03,149.96,7.82]
[1642096309440,3.81987371,150.03,149.96,8.08]
[1642096309642,3.81987371,150.03,149.96,13.82]
[1642096309843,3.81987371,150.03,149.96,7.82]
[1642096310245,10.3052725,150.05,149.97,11.42388687]
[1642096310444,7.6392725,150.05,149.98,7.82]
[1642096310944,7.6392725,150.05,149.99,65.33]
[1642096311144,7.6392725,150.05,149.98,14.33]
[1642096311347,3.81987371,150.06,149.98,14.33]
[1642096311545,2.916,150.05,149.98,14.08]
[1642096312245,7.6392725,150.04,149.98,14.08]
[1642096312745,7.6392725,150.04,149.99,65.33]
[1642096312947,7.6392725,150.04,149.99,65.84]
[1642096313448,7.6392725,150.04,150.0,1.64999521]
[1642096313647,7.6392725,150.04,150.01,7.82]
[1642096313847,7.6392725,150.04,150.01,8.61418397]
[1642096314048,7.6392725,150.04,150.02,6.06439993]
[1642096314448,1.90963904,150.04,150.02,6.57439993]
[1642096314849,1.90963904,150.04,150.03,7.82]
[1642096315054,1.90963904,150.04,150.03,8.33]
[1642096315649,1.90963904,150.04,150.03,73.66]
[1642096315851,1.90963904,150.05,150.03,73.66]
[1642096316053,1.90963904,150.05,150.04,71.39439993]
[1642096316452,1.90963904,150.05,150.04,71.90439993]
[1642096318956,1.90963904,150.05,150.04,6.57439993]
[1642096320861,1.90963904,150.05,150.04,6.32439993]
[1642096322064,1.90963904,150.05,150.04,6.06439993]
[1642096322263,1.90963904,150.05,149.99,23.597]
[1642096322462,1.90963904,150.05,149.99,23.847]
[1642096322864,1.90963904,150.05,149.99,88.927]
[1642096323278,1.90963904,150.03,150.0,4.24174031]
[1642096323482,1.90963904,150.03,150.01,10.85219996]
[1642096324085,1.90963904,150.04,150.02,65.33]
[1642096324285,1.90963904,150.04,150.02,73.15]
[1642096324484,1.90963904,150.04,150.02,73.66]
[1642096324686,1.90963904,150.04,150.03,3.03219996]
[1642096325088,1.90963904,150.04,150.03,3.29219996]
[1642096325388,1.90963904,150.06,150.03,3.29219996]
[1642096325789,1.90963904,150.06,150.03,3.03219996]
[1642096325987,1.90963904,150.06,150.04,3.03219997]
[1642096326187,1.90963904,150.06,150.05,51.03219996]
[1642096326588,1.90963904,150.06,150.05,3.03219996]
[1642096326788,1.90963904,150.06,150.05,68.36219996]
[1642096327188,1.90963904,150.06,150.05,3.03219996]
[1642096327788,1.90963904,150.07,150.05,3.03219996]
[1642096327989,1.90963904,150.07,150.06,3.03219997]
[1642096328390,1.90963904,150.07,150.05,3.03219996]
[1642096328590,1.90963904,150.07,149.99,9.777]
[1642096328792,1.90963904,150.07,149.98,7.82]
[1642096328992,2.666,150.06,149.96,9.53456953]
[1642096329191,12.6646,150.06,149.96,1.71456953]
[1642096329391,12.87938253,150.05,149.96,1.71456953]
[1642096329591,2.666,150.04,149.96,1.71456953]
[1642096329793,4.57563904,150.04,149.94,9.9146]
[1642096329991,10.82563904,150.04,149.94,9.9146]
[1642096330592,10.82563904,150.04,149.94,75.2446]
[1642096331194,1.90963904,150.01,149.94,75.2446]
[1642096331495,1.90963904,150.01,149.94,10.1646]
[1642096331696,8.09423579,150.04,149.95,36.0]
[1642096331996,11.9141095,150.04,149.94,9.9146]
[1642096332198,10.0003,150.03,149.91,13.92024961]
[1642096332396,2.736,150.02,149.9,10.1862]
[1642096332595,2.736,150.02,149.87,3.47964241]
[1642096332797,30.3811,150.01,149.87,3.47964241]
[1642096332997,2.736,150.0,149.86,3.47964241]
[1642096333196,10.004,149.98,149.86,3.47964241]
[1642096333399,89.0,149.94,149.83,15.49807014]
[1642096333597,16.55389884,149.93,149.83,15.49807014]
[1642096334097,22.55389884,149.93,149.81,9.8284]
[1642096334298,10.0083,149.91,149.81,9.8284]
[1642096334525,10.0083,149.91,149.79,2.666]
[1642096334526,16.2583,149.91,149.79,2.666]
[1642096334700,2.669,149.9,149.79,7.82]
[1642096334997,2.669,149.9,149.79,20.85084095]
[1642096334998,14.30889624,149.89,149.79,20.85084095]
[1642096335398,20.30889624,149.89,149.79,20.85084095]
[1642096335599,6.0,149.89,149.79,86.18084095]
[1642096336102,2.669,149.9,149.79,86.43084095]
[1642096336310,2.669,149.93,149.79,86.43084095]
[1642096336500,8.669,149.93,149.79,86.43084095]
[1642096336700,8.669,149.93,149.79,88.08083616]
[1642096337100,8.919,149.93,149.79,88.34083616]
[1642096337302,10.0081,149.92,149.81,65.33]
[1642096337500,16.2581,149.92,149.83,15.9275649]
[1642096337702,6.25,149.92,149.83,15.9275649]
[1642096337900,5.75,149.92,149.83,16.4375649]
[1642096338101,5.75,149.92,149.83,81.7675649]
[1642096338302,2.669,149.93,149.83,81.7675649]
[1642096338502,2.669,149.93,149.83,16.4375649]
[1642096338706,2.739,149.93,149.82,2.669]
[1642096338903,2.739,149.93,149.78,2.668]
[1642096339103,1.64999521,149.92,149.77,7.82]
[1642096339305,10.0121,149.86,149.77,7.82]
[1642096339504,16.2621,149.86,149.77,7.82]
[1642096339705,16.2621,149.86,149.78,16.65205285]
[1642096339904,10.2621,149.86,149.78,16.65205285]
[1642096340105,16.2621,149.86,149.78,16.90205285]
[1642096340308,16.2621,149.86,149.78,16.65205285]
[1642096340506,6.25,149.86,149.78,16.65205285]
[1642096340907,18.6798,149.87,149.78,16.65205285]
[1642096341108,0.25,149.87,149.78,81.98205285]
[1642096341512,0.07,149.9,149.78,82.24205285]
[1642096341708,42.2876,149.91,149.78,84.14204806]
[1642096341908,10.0102,149.88,149.78,84.14204806]
[1642096342108,10.2602,149.88,149.78,84.14204806]
[1642096342709,16.2602,149.88,149.78,84.14204806]
[1642096342910,10.2602,149.88,149.78,84.14204806]
[1642096343312,0.25,149.88,149.79,2.669]
[1642096343511,6.0,149.88,149.79,3.179]
[1642096344012,16.0096,149.89,149.79,4.82899521]
[1642096344412,16.0096,149.89,149.79,70.15899521]
[1642096346214,6.0,149.89,149.79,70.15899521]
[1642096346615,29.362,149.9,149.79,70.15899521]
[1642096347017,29.362,149.9,149.79,76.15899521]
[1642096347216,24.8214,149.92,149.8,7.82]
[1642096347415,24.8214,149.92,149.81,65.33]
[1642096347616,30.8214,149.92,149.83,65.33]
[1642096348015,30.8214,149.92,149.83,71.84]
[1642096348217,30.8214,149.92,149.83,84.29958776]
[1642096348618,31.0714,149.92,149.83,84.29958776]
[1642096348815,24.8214,149.92,149.84,1.64999521]
[1642096349021,24.0695,149.95,149.85,65.33]
[1642096349220,24.0695,149.95,149.86,7.82]
[1642096349540,26.1736,149.99,149.88,65.33]
[1642096349738,23.5056,149.99,149.89,18.2327638]
[1642096349937,23.5056,149.99,149.9,7.82]
[1642096350136,23.5056,149.99,149.92,14.5097273]
[1642096350336,23.5056,149.99,149.93,2.666]
[1642096350536,23.5056,149.99,149.93,0.51]
[1642096350939,23.1547,150.01,149.93,0.51]
[1642096351338,29.1547,150.01,149.93,0.25]
[1642096351539,29.1547,150.01,149.93,65.58]
[1642096351737,29.1547,150.01,149.93,65.33]
[1642096351937,29.1547,150.01,149.93,65.84]
[1642096352538,23.1547,150.01,149.93,65.84]
[1642096352740,29.1547,150.01,149.93,65.84]
[1642096353740,29.1547,150.01,149.93,0.51]
[1642096353943,29.1547,150.01,149.9,10.996]
[1642096354143,29.4747,150.01,149.9,8.07]
[1642096354342,2.666,150.0,149.9,8.07]
[1642096354541,0.07,149.99,149.87,2.666]
[1642096354741,10.0754,149.96,149.83,10.486]
[1642096354942,16.4307326,149.94,149.83,7.82]
[1642096355141,2.668,149.93,149.83,7.82]
[1642096355542,8.918,149.93,149.83,7.32]
[1642096355941,8.918,149.93,149.83,7.58]
[1642096356141,8.918,149.93,149.83,13.58]
[1642096356542,8.918,149.93,149.83,13.32]
[1642096356745,10.0076,149.92,149.83,13.32]
[1642096356943,14.48497868,149.91,149.83,13.57]
[1642096357347,20.48497868,149.91,149.83,13.57]
[1642096358148,30.49327868,149.91,149.83,13.57]
[1642096358555,30.49327868,149.91,149.83,13.32]
[1642096358750,30.74327868,149.91,149.83,6.0]
[1642096359048,30.74327868,149.91,149.81,2.668]
[1642096359250,30.74327868,149.91,149.78,7.82]
[1642096359251,10.0124,149.85,149.78,7.82]
[1642096359647,12.89602769,149.84,149.78,7.82]
[1642096360049,19.14602769,149.84,149.76,5.39501299]
[1642096360450,10.0139,149.83,149.76,5.39501299]
[1642096360852,16.2639,149.83,149.76,5.39501299]
[1642096361053,16.2639,149.83,149.74,7.82]
[1642096361254,12.6839,149.83,149.74,21.89512864]
[1642096361452,0.07,149.87,149.77,1.64999521]
[1642096361651,0.07,149.87,149.78,2.669]
[1642096362051,0.07,149.87,149.78,2.919]
[1642096362254,33.3812,149.86,149.76,7.82]
[1642096362454,39.6412,149.86,149.76,7.82]
[1642096362651,10.0823,149.85,149.75,2.669]
[1642096362853,2.67,149.84,149.75,2.669]
[1642096363052,8.92,149.84,149.75,2.669]
[1642096363252,8.92,149.84,149.75,0.99865859]
[1642096363455,13.04743415,149.8,149.75,0.99865859]
[1642096363958,29.06603415,149.8,149.75,0.99865859]
[1642096364156,2.67,149.84,149.75,2.6486538]
[1642096364357,47.445,149.85,149.76,65.33]
[1642096364555,47.445,149.85,149.77,2.67]
[1642096364755,47.445,149.85,149.76,2.92]
[1642096364956,47.445,149.85,149.76,3.18]
[1642096365157,26.07366445,149.84,149.76,3.18]
[1642096365356,26.07366445,149.84,149.76,0.51]
[1642096365557,32.07366445,149.84,149.76,0.51]
[1642096365756,32.07366445,149.84,149.75,3.18]
[1642096365958,32.07366445,149.84,149.76,1.64999521]
[1642096366362,22.06056445,149.84,149.76,0.51]
[1642096366558,6.0,149.84,149.76,10.5226]
[1642096366758,47.445,149.85,149.77,66.97999521]
[1642096366961,2.67,149.9,149.78,2.67]
[1642096367159,16.56,149.9,149.78,2.67]
[1642096367358,10.81,149.9,149.78,0.25]
[1642096367560,13.20154474,149.86,149.78,0.25]
[1642096367760,2.669,149.85,149.78,0.25]
[1642096367961,2.669,149.85,149.75,10.0128]
[1642096368162,2.669,149.85,149.76,12.13999521]
[1642096368361,47.6359,149.92,149.76,17.76399521]
[1642096368561,25.7498,149.96,149.77,1.64999521]
[1642096368761,25.7498,149.96,149.8,10.0063]
[1642096368762,23.0798,149.96,149.8,10.0063]
[1642096368960,23.0798,149.96,149.81,28.01492937]
[1642096368961,16.80070771,149.93,149.81,28.01492937]
[1642096369164,2.668,149.92,149.81,29.66492458]
[1642096369465,16.80070771,149.93,149.81,36.17492458]
[1642096369662,6.49231161,149.95,149.82,66.97999521]
[1642096369863,3.82331161,149.95,149.88,65.33]
[1642096370062,3.82331161,149.95,149.89,2.668]
[1642096370264,3.82331161,149.95,149.88,8.33]
[1642096370463,3.82331161,149.95,149.85,7.82]
[1642096370663,0.07,149.93,149.83,7.82]
[1642096370863,2.668,149.92,149.84,0.25]
[1642096371266,2.668,149.93,149.84,0.25]
[1642096371462,16.01783457,149.92,149.84,0.25]
[1642096371863,16.01783457,149.92,149.84,80.65511525]
[1642096372064,16.01783457,149.92,149.84,90.92231525]
[1642096372261,16.01783457,149.92,149.84,10.5172]
[1642096373066,16.26783457,149.92,149.84,10.5172]
[1642096373468,16.01783457,149.92,149.84,10.5172]
[1642096373668,22.01783457,149.92,149.84,10.5172]
[1642096374470,24.68583457,149.92,149.84,10.5172]
[1642096374870,18.68583457,149.92,149.84,10.5172]
[1642096375070,16.01783457,149.92,149.84,10.5172]
[1642096375274,16.01783457,149.92,149.84,75.8472]
[1642096375473,16.26783457,149.92,149.84,10.0072]
[1642096375674,0.07,149.9,149.82,10.0078]
[1642096375891,2.669,149.89,149.82,10.0078]
[1642096376091,2.669,149.91,149.82,10.0078]
[1642096376494,2.669,149.95,149.82,18.6768]
[1642096376892,2.669,149.95,149.87,10.0047]
[1642096377092,2.669,149.95,149.87,10.5147]
[1642096377293,19.79662052,149.95,149.87,10.5147]
[1642096377492,20.04662052,149.95,149.87,10.5147]
[1642096378093,26.04662052,149.95,149.87,0.51]
[1642096378292,26.04662052,149.95,149.85,8.08]
[1642096378293,26.11662052,149.95,149.85,8.08]
[1642096378492,26.11662052,149.95,149.85,0.51]
[1642096378896,26.04662052,149.95,149.85,0.25]
[1642096379095,35.80212052,149.95,149.85,10.2559]
[1642096379495,35.80212052,149.95,149.85,10.5159]
[1642096379496,25.79662052,149.95,149.85,10.5159]
[1642096379695,19.79662052,149.95,149.85,10.5159]
[1642096379898,25.79662052,149.95,149.85,10.5159]
[1642096380096,19.79662052,149.95,149.85,10.5159]
[1642096380296,46.9436,149.96,149.86,2.668]
[1642096380497,46.9436,149.96,149.88,10.0035]
[1642096380696,77.87840442,150.0,149.89,2.668]
[1642096380996,78.1441,150.0,149.89,6.51]
[1642096381196,16.22876108,149.99,149.89,6.51]
[1642096381398,26.23156108,149.99,149.89,16.5127]
[1642096381597,32.23156108,149.99,149.89,16.5127]